fUST/lending_fUST_20251006
["ID","MTS","AMOUNT","RATE_DAILY","PERIOD"]
[389513406,1759690246751,-2388.91,0.0001726,2]
[389513407,1759690246761,-814.92,0.0001726,2]
[389513408,1759690246771,-3105.25,0.0001726,2]
[389513409,1759690246780,-500.0,0.0001726,2]
[389513410,1759690246790,-500.0,0.0001726,2]
[389513411,1759690246799,-1333.89,0.0001726,2]
[389513412,1759690246809,-3584.0,0.0001726,2]
[389513413,1759690246818,-1411.27,0.0001726,2]
[389513414,1759690246827,-519.31358704,0.0001726,2]
[389513415,1759690246837,-571.3,0.0001726,2]
[389513416,1759690246846,-7344.3,0.0001726,2]
[389513417,1759690246856,-547.55,0.0001726,2]
[389513418,1759690246866,-1343.31,0.0001726,2]
[389513419,1759690246875,-534.68,0.0001726,2]
[389513420,1759690246885,-500.0,0.0001726,2]
[389513421,1759690246894,-684.92,0.0001726,2]
[389513422,1759690246904,-500.0,0.0001726,2]
[389513423,1759690246913,-706.12,0.0001726,2]
[389513424,1759690246924,-500.0,0.0001726,2]
[389513425,1759690246934,-500.0,0.0001726,2]
[389513426,1759690246943,-829.25,0.0001726,2]
[389513427,1759690246953,-500.0,0.0001726,2]
[389513428,1759690246965,-500.0,0.0001726,2]
[389513429,1759690246975,-500.0,0.0001726,2]
[389513430,1759690246990,-1374.88,0.0001726,2]
[389513431,1759690247000,-1686.64,0.0001726,2]
[389513432,1759690247009,-500.0,0.0001726,2]
[389513433,1759690247019,-1683.72,0.0001726,2]
[389513434,1759690247029,-2085.55,0.0001726,2]
[389513435,1759690247039,-500.0,0.0001726,2]
[389513436,1759690247049,-1428.18,0.0001726,2]
[389513437,1759690247061,-5191.0,0.0001726,2]
[389513438,1759690247071,-500.0,0.0001726,2]
[389513439,1759690247080,-635.25,0.0001726,2]
[389513440,1759690247090,-518.49,0.0001726,2]
[389513441,1759690247099,-1446.83555857,0.00017506,2]
[389513442,1759690247109,-500.0,0.00017534,2]
[389513443,1759690247119,-500.0,0.00017534,2]
[389513444,1759690247129,-500.0,0.00017534,2]
[389513445,1759690247138,-500.0,0.00017534,2]
[389513446,1759690247147,-500.0,0.00017534,2]
[389513447,1759690247156,-608.2,0.00017534,2]
[389513448,1759690247165,-770.32,0.00017534,2]
[389513449,1759690247175,-571.98,0.00017534,2]
[389513450,1759690247185,-500.0,0.00017534,2]
[389513451,1759690247194,-500.0,0.00017534,2]
[389513452,1759690247203,-1348.02,0.00017534,2]
[389513453,1759690247213,-725.89,0.00017534,2]
[389513454,1759690247223,-500.0,0.00017534,2]
[389513455,1759690247232,-500.0,0.00017534,2]
[389513456,1759690247242,-500.0,0.00017534,2]
[389513457,1759690247251,-632.19,0.00017534,2]
[389513458,1759690247260,-803.07,0.00017534,2]
[389513459,1759690247269,-500.0,0.00017534,2]
[389513460,1759690247279,-500.0,0.00017534,2]
[389513461,1759690247288,-513.15,0.00017534,2]
[389513462,1759690247298,-500.0,0.00017534,2]
[389513463,1759690247308,-588.12,0.00017534,2]
[389513464,1759690247317,-500.0,0.00017534,2]
[389513465,1759690247327,-356.71982264,0.00017534,2]
[389513466,1759690247336,-500.0,0.00017534,2]
[389513467,1759690247346,-671.29,0.00017534,2]
[389513468,1759690247355,-500.0,0.00017534,2]
[389513469,1759690247365,-500.0,0.00017534,2]
[389513470,1759690247375,-500.0,0.00017534,2]
[389513471,1759690247384,-850.93,0.00017534,2]
[389513472,1759690247394,-1711.35,0.00017534,2]
[389513473,1759690247404,-500.0,0.00017534,2]
[389513474,1759690247413,-500.0,0.00017534,2]
[389513475,1759690247423,-500.0,0.00017534,2]
[389513476,1759690247433,-500.0,0.00017534,2]
[389513477,1759690247443,-500.0,0.00017534,2]
[389513478,1759690247452,-331.36520157,0.00017534,2]
[389513479,1759690247461,-592.5,0.00017534,2]
[389513480,1759690247471,-1161.04,0.00017534,2]
[389513481,1759690247481,-500.0,0.00017534,2]
[389513482,1759690247491,-500.0,0.00017534,2]
[389513483,1759690247501,-508.53,0.00017534,2]
[389513484,1759690247510,-500.0,0.00017534,2]
[389513485,1759690247520,-638.1,0.00017534,2]
[389513486,1759690247530,-1145.05,0.00017534,2]
[389513487,1759690247539,-500.0,0.00017534,2]
[389513488,1759690247549,-500.0,0.00017534,2]
[389513489,1759690247559,-500.0,0.00017534,2]
[389513490,1759690247569,-1975.5,0.00017534,2]
[389513491,1759690247579,-500.0,0.00017534,2]
[389513492,1759690247589,-500.0,0.00017534,2]
[389513493,1759690247599,-500.0,0.00017534,2]
[389513494,1759690247608,-500.0,0.00017534,2]
[389513495,1759690247618,-740.03,0.00017534,2]
[389513496,1759690247628,-500.0,0.00017534,2]
[389513497,1759690247637,-1201.39,0.00017534,2]
[389513498,1759690247646,-500.0,0.00017534,2]
[389513499,1759690247658,-500.0,0.00017534,2]
[389513501,1759690247668,-500.0,0.00017534,2]
[389513502,1759690247678,-522.22,0.00017534,2]
[389513504,1759690247688,-598.09,0.00017534,2]
[389513505,1759690247697,-500.0,0.00017534,2]
[389513506,1759690247706,-500.0,0.00017534,2]
[389513507,1759690247716,-500.0,0.00017534,2]
[389513509,1759690247725,-500.0,0.00017534,2]
[389513510,1759690247734,-867.48,0.00017534,2]
[389513528,1759690247886,-820.57,0.00017534,2]
[389513530,1759690247896,-583.82,0.00017534,2]
[389513532,1759690247907,-1033.13,0.00017534,2]
[389513534,1759690247916,-1986.75,0.00017534,2]
[389513536,1759690247925,-810.99,0.00017534,2]
[389513538,1759690247935,-859.56,0.00017534,2]
[389513540,1759690247945,-328.97343637,0.00017534,2]
[389513542,1759690247953,-527.97803922,0.00017534,2]
[389513544,1759690247963,-1191.11,0.00017534,2]
[389513546,1759690247972,-500.0,0.00017534,2]
[389513548,1759690247983,-564.2,0.00017534,2]
[389513550,1759690247994,-500.0,0.00017534,2]
[389513552,1759690248003,-637.74177378,0.00017534,2]
[389513554,1759690248015,-500.0,0.00017534,2]
[389513556,1759690248027,-500.0,0.00017534,2]
[389513558,1759690248037,-198.04609324,0.00017534,2]
[389513560,1759690248047,-500.0,0.00017534,2]
[389513562,1759690248058,-500.0,0.00017534,2]
[389513564,1759690248069,-500.0,0.00017534,2]
[389513566,1759690248079,-1803.77,0.00017534,2]
[389513568,1759690248088,-500.0,0.00017534,2]
[389513570,1759690248098,-500.0,0.00017534,2]
[389513572,1759690248107,-500.0,0.00017534,2]
[389513574,1759690248115,-710.55,0.00017534,2]
[389513576,1759690248125,-1021.33,0.00017534,2]
[389513578,1759690248134,-916.94,0.00017534,2]
[389513580,1759690248143,-712.18,0.00017534,2]
[389513582,1759690248153,-500.0,0.00017534,2]
[389513585,1759690248163,-500.0,0.00017534,2]
[389513587,1759690248172,-527.45,0.00017534,2]
[389513589,1759690248182,-500.0,0.00017534,2]
[389513591,1759690248192,-500.0,0.00017534,2]
[389513593,1759690248201,-803.39,0.00017534,2]
[389513595,1759690248210,-5294.61,0.00017534,2]
[389513597,1759690248218,-1841.09,0.00017534,2]
[389513599,1759690248228,-500.0,0.00017534,2]
[389513601,1759690248236,-609.93,0.00017534,2]
[389513603,1759690248246,-500.0,0.00017534,2]
[389513605,1759690248256,-1882.16,0.00017534,2]
[389513607,1759690248265,-500.0,0.00017534,2]
[389513609,1759690248275,-2614.89,0.00017534,2]
[389513611,1759690248284,-1212.78,0.00017534,2]
[389513613,1759690248294,-931.64,0.00017534,2]
[389513615,1759690248304,-500.0,0.00017534,2]
[389513617,1759690248313,-799.33,0.00017534,2]
[389513619,1759690248322,-500.0,0.00017534,2]
[389513621,1759690248331,-1076.54,0.00017534,2]
[389513623,1759690248340,-1637.09,0.00017534,2]
[389513625,1759690248349,-1156.93,0.00017534,2]
[389513627,1759690248358,-4145.12,0.00017534,2]
[389513629,1759690248367,-2983.63,0.00017534,2]
[389513631,1759690248376,-550.25144794,0.00017534,2]
[389513633,1759690248385,-561.75,0.00017534,2]
[389513634,1759690248394,-5428.36,0.00017534,2]
[389513636,1759690248403,-500.0,0.00017534,2]
[389513638,1759690248413,-653.69,0.00017534,2]
[389513640,1759690248422,-919.66,0.00017534,2]
[389513643,1759690248435,-629.80299077,0.00017534,2]
[389513645,1759690248445,-1285.52,0.00017534,2]
[389513647,1759690248455,-621.18,0.00017534,2]
[389513649,1759690248465,-500.0,0.00017534,2]
[389513651,1759690248475,-1134.93,0.00017534,2]
[389513652,1759690248488,-500.0,0.00017534,2]
[389513654,1759690248498,-3921.81,0.00017534,2]
[389513657,1759690248510,-512.86,0.00017534,2]
[389513659,1759690248520,-1191.71,0.00017534,2]
[389513660,1759690248533,-617.49,0.00017534,2]
[389513663,1759690248547,-500.0,0.00017534,2]
[389513665,1759690248559,-2669.23,0.00017534,2]
[389513667,1759690248571,-3687.19,0.00017534,2]
[389513669,1759690248584,-590.44,0.00017534,2]
[389513671,1759690248597,-500.0,0.00017534,2]
[389513673,1759690248609,-500.0,0.00017534,2]
[389513675,1759690248621,-594.65,0.00017534,2]
[389513677,1759690248632,-500.0,0.00017534,2]
[389513679,1759690248645,-873.61,0.00017534,2]
[389513681,1759690248658,-1974.94,0.00017534,2]
[389513683,1759690248671,-1674.06,0.00017534,2]
[389513685,1759690248690,-671.95,0.00017534,2]
[389513687,1759690248702,-687.21,0.00017534,2]
[389513689,1759690248715,-1172.42,0.00017534,2]
[389513691,1759690248731,-3206.42,0.00017534,2]
[389513693,1759690248745,-1124.49,0.00017534,2]
[389513695,1759690248757,-2952.94,0.00017534,2]
[389513697,1759690248769,-1706.95,0.00017534,2]
[389513699,1759690248781,-870.65,0.00017534,2]
[389513701,1759690248795,-2360.24,0.00017534,2]
[389513703,1759690248807,-893.41,0.00017534,2]
[389513705,1759690248819,-533.65729588,0.00017534,2]
[389513707,1759690248830,-1400.52,0.00017534,2]
[389513709,1759690248841,-500.0,0.00017534,2]
[389513711,1759690248852,-766.29,0.00017534,2]
[389513713,1759690248863,-2388.91,0.00017534,2]
[389513715,1759690248874,-3105.25,0.00017534,2]
[389513717,1759690248884,-814.92,0.00017534,2]
[389513720,1759690248895,-500.0,0.00017534,2]
[389513722,1759690248907,-549.62031783,0.00017534,2]
[389513724,1759690248917,-1333.89,0.00017534,2]
[389513726,1759690248930,-3584.0,0.00017534,2]
[389513728,1759690248944,-1411.27,0.00017534,2]
[389513730,1759690248954,-571.3,0.00017534,2]
[389513732,1759690248965,-7344.3,0.00017534,2]
[389513734,1759690248976,-547.55,0.00017534,2]
[389513736,1759690248989,-1343.31,0.00017534,2]
[389513738,1759690249000,-534.68,0.00017534,2]
[389513740,1759690249010,-500.0,0.00017534,2]
[389513742,1759690249020,-684.92,0.00017534,2]
[389513744,1759690249031,-500.0,0.00017534,2]
[389513746,1759690249041,-706.12,0.00017534,2]
[389513748,1759690249051,-500.0,0.00017534,2]
[389513750,1759690249062,-500.0,0.00017534,2]
[389513751,1759690249072,-829.25,0.00017534,2]
[389513753,1759690249081,-500.0,0.00017534,2]
[389513755,1759690249091,-500.0,0.00017534,2]
[389513757,1759690249100,-500.0,0.00017534,2]
[389513760,1759690249110,-1374.88,0.00017534,2]
[389513761,1759690249119,-1686.64,0.00017534,2]
[389513764,1759690249129,-500.0,0.00017534,2]
[389513766,1759690249139,-1683.72,0.00017534,2]
[389513768,1759690249150,-2085.55,0.00017534,2]
[389513770,1759690249161,-500.0,0.00017534,2]
[389513771,1759690249171,-1428.18,0.00017534,2]
[389513773,1759690249183,-5191.0,0.00017534,2]
[389513776,1759690249196,-500.0,0.00017534,2]
[389513777,1759690249206,-635.25,0.00017534,2]
[389513780,1759690249217,-518.49,0.00017534,2]
[389513781,1759690249227,-500.0,0.00017608,2]
[389513783,1759690249238,-500.0,0.00017613,2]
[389513786,1759690249248,-500.0,0.00017613,2]
[389513787,1759690249259,-500.0,0.00017625,2]
[389513789,1759690249269,-500.0,0.00017625,2]
[389513791,1759690249280,-500.0,0.00017625,2]
[389513794,1759690249290,-500.0,0.00017625,2]
[389513796,1759690249299,-500.0,0.00017625,2]
[389513798,1759690249308,-500.0,0.00017625,2]
[389513800,1759690249317,-500.0,0.00017625,2]
[389513802,1759690249326,-500.0,0.00017625,2]
[389513804,1759690249336,-500.0,0.00017625,2]
[389513806,1759690249345,-500.0,0.00017625,2]
[389513808,1759690249354,-500.0,0.00017625,2]
[389513810,1759690249364,-500.0,0.00017625,2]
[389513812,1759690249373,-500.0,0.00017625,2]
[389513814,1759690249382,-262.15546015,0.00017625,2]
[389513816,1759690249391,-500.0,0.00017625,2]
[389513818,1759690249400,-500.0,0.00017625,2]
[389513820,1759690249409,-500.0,0.00017625,2]
[389513822,1759690249418,-500.0,0.00017625,2]
[389513824,1759690249427,-500.0,0.00017625,2]
[389513826,1759690249439,-500.0,0.00017625,2]
[389513828,1759690249448,-500.0,0.00017632,2]
[389513830,1759690249457,-500.0,0.00017632,2]
[389513832,1759690249467,-372.0,0.00017638,2]
[389513834,1759690249475,-500.0,0.00017644,2]
[389513835,1759690249484,-500.0,0.00017644,2]
[389513836,1759690249493,-500.0,0.00017644,2]
[389513837,1759690249502,-500.0,0.00017644,2]
[389513838,1759690249512,-500.0,0.00017657,2]
[389513839,1759690249521,-500.0,0.00017695,2]
[389513840,1759690249531,-500.0,0.00017695,2]
[389513841,1759690249540,-500.0,0.00017695,2]
[389513842,1759690249549,-500.0,0.00017695,2]
[389513843,1759690249558,-19292.2273969,0.00017787,2]
[389513844,1759690249568,-500.0,0.00017808,2]
[389513845,1759690249577,-500.0,0.00017808,2]
[389513846,1759690249587,-514.21966805,0.00017808,2]
[389513847,1759690249597,-500.0,0.00017808,2]
[389513848,1759690249606,-500.0,0.00017808,2]
[389513849,1759690249615,-608.2,0.00017808,2]
[389513850,1759690249625,-770.32,0.00017808,2]
[389513851,1759690249635,-571.98,0.00017808,2]
[389513853,1759690249644,-500.0,0.00017808,2]
[389513854,1759690249654,-500.0,0.00017808,2]
[389513856,1759690249663,-1348.02,0.00017808,2]
[389513858,1759690249673,-725.89,0.00017808,2]
[389513860,1759690249685,-500.0,0.00017808,2]
[389513862,1759690249695,-500.0,0.00017808,2]
[389513864,1759690249704,-500.0,0.00017808,2]
[389513866,1759690249714,-632.19,0.00017808,2]
[389513868,1759690249726,-803.07,0.00017808,2]
[389513870,1759690249735,-500.0,0.00017808,2]
[389513872,1759690249744,-327.38402587,0.00017808,2]
[389513874,1759690249755,-513.15,0.00017808,2]
[389513876,1759690249765,-500.0,0.00017808,2]
[389513878,1759690249775,-588.12,0.00017808,2]
[389513880,1759690249785,-500.0,0.00017808,2]
[389513882,1759690249795,-500.0,0.00017808,2]
[389513883,1759690249804,-671.29,0.00017808,2]
[389513885,1759690249814,-500.0,0.00017808,2]
[389513887,1759690249824,-500.0,0.00017808,2]
[389513889,1759690249834,-500.0,0.00017808,2]
[389513891,1759690249844,-850.93,0.00017808,2]
[389513893,1759690249854,-1711.35,0.00017808,2]
[389513895,1759690249863,-500.0,0.00017808,2]
[389513897,1759690249873,-500.0,0.00017808,2]
[389513899,1759690249883,-500.0,0.00017808,2]
[389513901,1759690249892,-492.34956128,0.00017808,2]
[389513903,1759690249902,-592.5,0.00017808,2]
[389513905,1759690249911,-1161.04,0.00017808,2]
[389513907,1759690249921,-500.0,0.00017808,2]
[389513909,1759690249932,-500.0,0.00017808,2]
[389513911,1759690249941,-508.53,0.00017808,2]
[389513913,1759690249951,-500.0,0.00017808,2]
[389513915,1759690249960,-638.1,0.00017808,2]
[389513917,1759690249970,-1145.05,0.00017808,2]
[389513919,1759690249985,-500.0,0.00017808,2]
[389513921,1759690249999,-500.0,0.00017808,2]
[389513923,1759690250009,-500.0,0.00017808,2]
[389513925,1759690250018,-1975.5,0.00017808,2]
[389513927,1759690250028,-500.0,0.00017808,2]
[389513929,1759690250038,-500.0,0.00017808,2]
[389513930,1759690250049,-500.0,0.00017808,2]
[389513932,1759690250058,-500.0,0.00017808,2]
[389513934,1759690250072,-740.03,0.00017808,2]
[389513936,1759690250084,-1201.39,0.00017808,2]
[389513938,1759690250094,-500.0,0.00017808,2]
[389513940,1759690250104,-500.0,0.00017808,2]
[389513942,1759690250112,-500.0,0.00017808,2]
[389513944,1759690250121,-522.22,0.00017808,2]
[389513946,1759690250131,-598.09,0.00017808,2]
[389513948,1759690250140,-500.0,0.00017808,2]
[389513950,1759690250150,-175.74081415,0.00017808,2]
[389513952,1759690250159,-500.0,0.00017808,2]
[389513954,1759690250168,-500.0,0.00017808,2]
[389513955,1759690250177,-867.48,0.00017808,2]
[389513957,1759690250188,-820.57,0.00017808,2]
[389513959,1759690250197,-583.82,0.00017808,2]
[389513961,1759690250207,-1033.13,0.00017808,2]
[389513963,1759690250217,-1986.75,0.00017808,2]
[389513965,1759690250226,-810.99,0.00017808,2]
[389513967,1759690250235,-859.56,0.00017808,2]
[389513969,1759690250245,-1191.11,0.00017808,2]
[389513971,1759690250255,-500.0,0.00017808,2]
[389513973,1759690250264,-564.2,0.00017808,2]
[389513975,1759690250273,-500.0,0.00017808,2]
[389513977,1759690250283,-500.0,0.00017808,2]
[389513978,1759690250293,-500.0,0.00017808,2]
[389513980,1759690250303,-500.0,0.00017808,2]
[389513982,1759690250312,-500.0,0.00017808,2]
[389513984,1759690250321,-500.0,0.00017808,2]
[389513986,1759690250331,-1803.77,0.00017808,2]
[389513988,1759690250341,-500.0,0.00017808,2]
[389513990,1759690250351,-500.0,0.00017808,2]
[389513992,1759690250360,-500.0,0.00017808,2]
[389513994,1759690250370,-710.55,0.00017808,2]
[389513996,1759690250380,-1021.33,0.00017808,2]
[389513998,1759690250389,-916.94,0.00017808,2]
[389514000,1759690250398,-712.18,0.00017808,2]
[389514002,1759690250407,-500.0,0.00017808,2]
[389514008,1759690250455,-500.0,0.00017808,2]
[389514010,1759690250464,-527.45,0.00017808,2]
[389514012,1759690250473,-500.0,0.00017808,2]
[389514014,1759690250482,-500.0,0.00017808,2]
[389514016,1759690250491,-803.39,0.00017808,2]
[389514018,1759690250500,-5294.61,0.00017808,2]
[389514020,1759690250509,-1841.09,0.00017808,2]
[389514022,1759690250518,-500.0,0.00017808,2]
[389514024,1759690250528,-609.93,0.00017808,2]
[389514026,1759690250537,-500.0,0.00017808,2]
[389514028,1759690250546,-1882.16,0.00017808,2]
[389514030,1759690250555,-500.0,0.00017808,2]
[389514032,1759690250564,-2614.89,0.00017808,2]
[389514033,1759690250573,-1212.78,0.00017808,2]
[389514035,1759690250584,-931.64,0.00017808,2]
[389514037,1759690250593,-288.66623334,0.00017808,2]
[389514039,1759690250602,-799.33,0.00017808,2]
[389514041,1759690250612,-500.0,0.00017808,2]
[389514043,1759690250621,-1076.54,0.00017808,2]
[389514045,1759690250630,-1637.09,0.00017808,2]
[389514047,1759690250639,-1156.93,0.00017808,2]
[389514049,1759690250651,-4145.12,0.00017808,2]
[389514051,1759690250660,-2983.63,0.00017808,2]
[389514053,1759690250669,-561.75,0.00017808,2]
[389514055,1759690250679,-5428.36,0.00017808,2]
[389514057,1759690250688,-500.0,0.00017808,2]
[389514059,1759690250697,-653.69,0.00017808,2]
[389514060,1759690250706,-919.66,0.00017808,2]
[389514062,1759690250715,-1285.52,0.00017808,2]
[389514064,1759690250724,-621.18,0.00017808,2]
[389514066,1759690250734,-500.0,0.00017808,2]
[389514068,1759690250743,-1134.93,0.00017808,2]
[389514070,1759690250752,-500.0,0.00017808,2]
[389514072,1759690250762,-3921.81,0.00017808,2]
[389514074,1759690250771,-512.86,0.00017808,2]
[389514076,1759690250780,-1191.71,0.00017808,2]
[389514078,1759690250789,-617.49,0.00017808,2]
[389514080,1759690250798,-500.0,0.00017808,2]
[389514082,1759690250807,-2669.23,0.00017808,2]
[389514083,1759690250816,-3687.19,0.00017808,2]
[389514085,1759690250825,-590.44,0.00017808,2]
[389514087,1759690250834,-500.0,0.00017808,2]
[389514089,1759690250845,-500.0,0.00017808,2]
[389514091,1759690250855,-594.65,0.00017808,2]
[389514093,1759690250864,-500.0,0.00017808,2]
[389514095,1759690250873,-873.61,0.00017808,2]
[389514097,1759690250883,-1974.94,0.00017808,2]
[389514099,1759690250893,-1674.06,0.00017808,2]
[389514101,1759690250903,-671.95,0.00017808,2]
[389514103,1759690250912,-687.21,0.00017808,2]
[389514105,1759690250921,-1172.42,0.00017808,2]
[389514107,1759690250931,-3206.42,0.00017808,2]
[389514109,1759690250941,-1124.49,0.00017808,2]
[389514111,1759690250950,-2952.94,0.00017808,2]
[389514113,1759690250959,-1706.95,0.00017808,2]
[389514115,1759690250969,-870.65,0.00017808,2]
[389514117,1759690250979,-2360.24,0.00017808,2]
[389514119,1759690250989,-893.41,0.00017808,2]
[389514120,1759690250999,-1400.52,0.00017808,2]
[389514122,1759690251008,-500.0,0.00017808,2]
[389514124,1759690251017,-766.29,0.00017808,2]
[389514126,1759690251026,-2388.91,0.00017808,2]
[389514128,1759690251036,-814.92,0.00017808,2]
[389514130,1759690251044,-3105.25,0.00017808,2]
[389514132,1759690251053,-500.0,0.00017808,2]
[389514134,1759690251062,-1333.89,0.00017808,2]
[389514136,1759690251071,-3584.0,0.00017808,2]
[389514138,1759690251080,-1411.27,0.00017808,2]
[389514140,1759690251089,-571.3,0.00017808,2]
[389514142,1759690251098,-7344.3,0.00017808,2]
[389514143,1759690251107,-547.55,0.00017808,2]
[389514145,1759690251116,-1343.31,0.00017808,2]
[389514147,1759690251125,-534.68,0.00017808,2]
[389514149,1759690251134,-479.16133704,0.00017808,2]
[389514151,1759690251143,-684.92,0.00017808,2]
[389514153,1759690251152,-500.0,0.00017808,2]
[389514155,1759690251161,-706.12,0.00017808,2]
[389514157,1759690251169,-500.0,0.00017808,2]
[389514159,1759690251178,-500.0,0.00017808,2]
[389514161,1759690251187,-829.25,0.00017808,2]
[389514163,1759690251196,-500.0,0.00017808,2]
[389514165,1759690251205,-500.0,0.00017808,2]
[389514166,1759690251214,-500.0,0.00017808,2]
[389514168,1759690251223,-1374.88,0.00017808,2]
[389514170,1759690251232,-1686.64,0.00017808,2]
[389514172,1759690251241,-500.0,0.00017808,2]
[389514174,1759690251251,-1683.72,0.00017808,2]
[389514176,1759690251260,-2085.55,0.00017808,2]
[389514178,1759690251269,-500.0,0.00017808,2]
[389514180,1759690251277,-1428.18,0.00017808,2]
[389514182,1759690251286,-5191.0,0.00017808,2]
[389514184,1759690251295,-500.0,0.00017808,2]
[389514186,1759690251304,-635.25,0.00017808,2]
[389514188,1759690251313,-518.49,0.00017808,2]
[389514190,1759690251321,-500.0,0.00017864,2]
[389514192,1759690251329,-1446.83555857,0.00017953,2]
[389514194,1759690251338,-1680.0,0.00017962,2]
[389514196,1759690251347,-430.0,0.00017981,2]
[389514198,1759690251356,-430.0,0.00018033,2]
[389514200,1759690251364,-396.0,0.00018038,2]
[389514202,1759690251373,-1680.0,0.00018051,2]
[389514204,1759690251382,-189.5044535,0.00018052,2]
[389514206,1759690251391,-500.0,0.00018082,2]
[389514208,1759690251400,-500.0,0.00018082,2]
[389514210,1759690251409,-500.0,0.00018082,2]
[389514212,1759690251418,-500.0,0.00018082,2]
[389514214,1759690251427,-608.2,0.00018082,2]
[389514216,1759690251436,-770.32,0.00018082,2]
[389514217,1759690251445,-571.98,0.00018082,2]
[389514219,1759690251454,-500.0,0.00018082,2]
[389514221,1759690251462,-500.0,0.00018082,2]
[389514223,1759690251471,-1348.02,0.00018082,2]
[389514225,1759690251480,-725.89,0.00018082,2]
[389514227,1759690251490,-500.0,0.00018082,2]
[389514229,1759690251500,-500.0,0.00018082,2]
[389514231,1759690251509,-632.19,0.00018082,2]
[389514233,1759690251518,-803.07,0.00018082,2]
[389514235,1759690251528,-500.0,0.00018082,2]
[389514237,1759690251537,-513.15,0.00018082,2]
[389514239,1759690251546,-500.0,0.00018082,2]
[389514241,1759690251556,-588.12,0.00018082,2]
[389514243,1759690251565,-500.0,0.00018082,2]
[389514245,1759690251574,-671.29,0.00018082,2]
[389514247,1759690251583,-500.0,0.00018082,2]
[389514249,1759690251593,-850.93,0.00018082,2]
[389514251,1759690251602,-1711.35,0.00018082,2]
[389514253,1759690251613,-500.0,0.00018082,2]
[389514255,1759690251622,-500.0,0.00018082,2]
[389514257,1759690251631,-500.0,0.00018082,2]
[389514259,1759690251641,-592.5,0.00018082,2]
[389514261,1759690251650,-1161.04,0.00018082,2]
[389514263,1759690251659,-500.0,0.00018082,2]
[389514265,1759690251668,-500.0,0.00018082,2]
[389514267,1759690251677,-508.53,0.00018082,2]
[389514269,1759690251686,-500.0,0.00018082,2]
[389514271,1759690251694,-638.1,0.00018082,2]
[389514273,1759690251703,-1145.05,0.00018082,2]
[389514275,1759690251713,-500.0,0.00018082,2]
[389514277,1759690251722,-500.0,0.00018082,2]
[389514279,1759690251731,-500.0,0.00018082,2]
[389514281,1759690251741,-1975.5,0.00018082,2]
[389514283,1759690251749,-500.0,0.00018082,2]
[389514285,1759690251758,-500.0,0.00018082,2]
[389514287,1759690251766,-500.0,0.00018082,2]
[389514289,1759690251775,-500.0,0.00018082,2]
[389514290,1759690251784,-151.0,0.00018082,2]
[389514292,1759690251794,-151.0,0.00018082,2]
[389514294,1759690251805,-740.03,0.00018082,2]
[389514296,1759690251813,-1201.39,0.00018082,2]
[389514298,1759690251822,-151.0,0.00018082,2]